{"text_format":"1","workbook":"xlsx","n_sheets":5,"sheets":["QQT","Simulation","Price List","Config. Data","Tabella"],"not_rendered":{"charts":0,"images":12,"macros":1,"external_links":0,"defined_names":0,"comments":0,"pivot_tables":0},"unopened":[],"bounds":{"document_bytes":16777216,"sheet_cells":100000,"rows_first":2000,"rows_last":500,"rows_between":2000,"halvings":0,"cell_chars":16384,"cell_head_chars":4096},"cells_cut":0,"cells_raw":0,"read":"whole","date_system":"1900"}

{"sheet":"QQT","index":0,"n_rows":40,"n_cols":4,"rows_kept":40,"cut":false,"hidden":false,"merged":[[1,1,3,2],[37,1,37,2],[38,1,38,2],[39,1,39,2],[9,1,9,2],[5,1,7,2]]}
[]
[]
[]
[]
[]
[null,"Quick Configuration Tool"]
[]
[]
[]
[null,"Please fill out all the required following fields:"]
[]
["\"L\" is the maximum dimension",{"$f":"'Config. Data'!B2","v":"Part Size"}]
["Thin or thick end?",{"$f":"'Config. Data'!B9","v":"Minimum Thickness (mm)"}]
["May I ask?",{"$f":"'Config. Data'!B12","v":"Weight (gr)"}]
["Number of faces of the product",{"$f":"'Config. Data'!B15","v":"Number of Stable States"}]
["Average pickable parts per minute",{"$f":"'Config. Data'!B19","v":"Average PPM (parts per min)"}]
["Heavy burden?",{"$f":"'Config. Data'!B23","v":"Metal Part"}]
["We can feed anything",{"$f":"'Config. Data'!B26","v":"Part Geometry"}]
["Superficial characteristic",{"$f":"'Config. Data'!B33","v":"Part Feature"}]
["110 or 220?",{"$f":"'Config. Data'!B38","v":"Power Supply"}]
["Need to shape top face details?",{"$f":"'Config. Data'!B42","v":"Top Light"}]
["3 Colors available",{"$f":"'Config. Data'!B45","v":"Light Color"}]
["Automatic option for fast dump out",{"$f":"'Config. Data'!B49","v":"Quick Emptying"}]
[]
["Double check it anyway","Feasibility:",{"$f":"IF(AND(C15='Config. Data'!C15,C16='Config. Data'!C21),'Config. Data'!E21,IF(AND(C15='Config. Data'!C16,OR(C16='Config. Data'!C20,C16='Config. Data'!C21)),'Config. Data'!E21,IF(C15='Config. Data'!C17,'Config. Data'!E21,IF(AND(OR(B27=Tabella!C3,B27=Tabella!C4,B27=Tabella!C6),C19='Config. Data'!C35),'Config. Data'!E21,IF(OR(C12='Config. Data'!C7,C19='Config. Data'!C34),'Config. Data'!E21,\"✔\")))))","v":"✔"}]
[]
["Model and Size",{"$f":"IF(C12='Config. Data'!C2,Tabella!C3,IF(C12='Config. Data'!C3,Tabella!C4,IF(AND(C12='Config. Data'!C4,C13='Config. Data'!C9),Tabella!C6,IF(AND(C12='Config. Data'!C4,C13='Config. Data'!C10),Tabella!C5,IF(C12='Config. Data'!C5,Tabella!C7,IF(C12='Config. Data'!C6,Tabella!C8,'Config. Data'!E16))))))","v":"Select Size, Weight And Thickness"},{"$f":"IFERROR(VLOOKUP($B27,'Price List'!C2:D135,2,FALSE),\"Description\")","v":"Description"},{"$f":"IFERROR(VLOOKUP($B27,'Price List'!$C$2:$D$195,3,FALSE),\"Price\")","v":"Price"}]
["Backlight",{"$f":"IF(AND(B27=Tabella!C3,C22='Config. Data'!C45),Tabella!D3,IF(AND(B27=Tabella!C3,C22='Config. Data'!C46),Tabella!E3,IF(AND(B27=Tabella!C3,C22='Config. Data'!C47),Tabella!F3,IF(AND(B27=Tabella!C4,C22='Config. Data'!C45),Tabella!D4,IF(AND(B27=Tabella!C4,,C22='Config. Data'!C46),Tabella!E4,IF(AND(B27=Tabella!C4,C22='Config. Data'!C47),Tabella!F4,IF(AND(OR(B27=Tabella!C5,B27=Tabella!C6),C22='Config. Data'!C45),Tabella!D5,IF(AND(OR(B27=Tabella!C5,B27=Tabella!C6),C22='Config. Data'!C46),Tabella!E5,IF(AND(OR(B27=Tabella!C5,B27=Tabella!C6),C22='Config. Data'!C47),Tabella!F5,IF(AND(B27=Tabella!C7,C22='Config. Data'!C45),Tabella!D7,IF(AND(B27=Tabella!C7,C22='Config. Data'!C46),Tabella!E7,IF(AND(B27=Tabella!C7,C22='Config. Data'!C47),Tabella!F7,IF(AND(B27=Tabella!C8,C22='Config. Data'!C45),Tabella!D8,IF(AND(B27=Tabella!C8,C22='Config. Data'!C46),Tabella!E8,IF(AND(B27=Tabella!C8,C22='Config. Data'!C47),Tabella!F8,'Config. Data'!E17)))))))))))))))","v":"Select Size, Weight, Thickness and Light Color"},{"$f":"IFERROR(VLOOKUP($B28,'Price List'!C3:D136,2,FALSE),\"Description\")","v":"Description"},{"$f":"IFERROR(VLOOKUP($B28,'Price List'!$C$2:$D$195,3,FALSE),\"Price\")","v":"Price"}]
["Bulk Feeder",{"$f":"IF(AND(C17='Config. Data'!C23,C20='Config. Data'!C38,B27=Tabella!C3),Tabella!G3,IF(AND(C17='Config. Data'!C23,C20='Config. Data'!C38,B27=Tabella!C4),Tabella!G4,IF(AND(C17='Config. Data'!C23,C20='Config. Data'!C38,B27=Tabella!C5),Tabella!G5,IF(AND(C17='Config. Data'!C23,C20='Config. Data'!C38,B27=Tabella!C5),Tabella!G5,IF(AND(C17='Config. Data'!C23,C20='Config. Data'!C38,B27=Tabella!C6),Tabella!G6,IF(AND(C17='Config. Data'!C23,C20='Config. Data'!C38,B27=Tabella!C7),Tabella!G7,IF(AND(C17='Config. Data'!C23,C20='Config. Data'!C38,B27=Tabella!C8),Tabella!G8,IF(AND(C17='Config. Data'!C23,C20='Config. Data'!C39,B27=Tabella!C3),Tabella!H3,IF(AND(C17='Config. Data'!C23,C20='Config. Data'!C39,B27=Tabella!C4),Tabella!H4,IF(AND(C17='Config. Data'!C23,C20='Config. Data'!C39,B27=Tabella!C5),Tabella!H5,IF(AND(C17='Config. Data'!C23,C20='Config. Data'!C39,B27=Tabella!C6),Tabella!H6,IF(AND(C17='Config. Data'!C23,C20='Config. Data'!C39,B27=Tabella!C7),Tabella!H7,IF(AND(C17='Config. Data'!C23,C20='Config. Data'!C39,B27=Tabella!C8),Tabella!H8,IF(AND(C17='Config. Data'!C24,C20='Config. Data'!C38,B27=Tabella!C3),Tabella!I3,IF(AND(C17='Config. Data'!C24,C20='Config. Data'!C38,B27=Tabella!C4),Tabella!I4,IF(AND(C17='Config. Data'!C24,C20='Config. Data'!C38,B27=Tabella!C5),Tabella!I5,IF(AND(C17='Config. Data'!C24,C20='Config. Data'!C38,B27=Tabella!C6),Tabella!I6,IF(AND(C17='Config. Data'!C24,C20='Config. Data'!C38,B27=Tabella!C7),Tabella!I7,IF(AND(C17='Config. Data'!C24,C20='Config. Data'!C38,B27=Tabella!C8),Tabella!I8,IF(AND(C17='Config. Data'!C24,C20='Config. Data'!C39,B27=Tabella!C3),Tabella!J3,IF(AND(C17='Config. Data'!C24,C20='Config. Data'!C39,B27=Tabella!C4),Tabella!J4,IF(AND(C17='Config. Data'!C24,C20='Config. Data'!C39,B27=Tabella!C5),Tabella!J5,IF(AND(C17='Config. Data'!C24,C20='Config. Data'!C39,B27=Tabella!C6),Tabella!J6,IF(AND(C17='Config. Data'!C24,C20='Config. Data'!C39,B27=Tabella!C7),Tabella!J7,IF(AND(C17='Config. Data'!C24,C20='Config. Data'!C39,B27=Tabella!C8),Tabella!J8,'Config. Data'!E20)))))))))))))))))))))))))","v":"Select Size, Weight, Tickness and Power Supply"},{"$f":"IFERROR(VLOOKUP($B29,'Price List'!C2:D195,2,FALSE),\"Description\")","v":"Description"},{"$f":"IFERROR(VLOOKUP($B29,'Price List'!$C$2:$D$195,3,FALSE),\"Price\")","v":"Price"}]
["Rotary Disc",{"$f":"IF(AND('Config. Data'!E30='Config. Data'!E2,QQT!B27=Tabella!C3),Tabella!K3,IF(AND('Config. Data'!E30='Config. Data'!E3,QQT!B27=Tabella!C3),Tabella!L3,IF(AND('Config. Data'!E30='Config. Data'!E4,QQT!B27=Tabella!C3),Tabella!M3,IF(AND('Config. Data'!E30='Config. Data'!E5,QQT!B27=Tabella!C3),Tabella!N3,IF(AND('Config. Data'!E30='Config. Data'!E6,QQT!B27=Tabella!C3),Tabella!O3,IF(AND('Config. Data'!E30='Config. Data'!E7,QQT!B27=Tabella!C3),Tabella!P3,IF(AND('Config. Data'!E30='Config. Data'!E8,QQT!B27=Tabella!C3),Tabella!Q3,IF(AND('Config. Data'!E30='Config. Data'!E9,QQT!B27=Tabella!C3),Tabella!R3,IF(AND('Config. Data'!E30='Config. Data'!E2,QQT!B27=Tabella!C4),Tabella!K4,IF(AND('Config. Data'!E30='Config. Data'!E3,QQT!B27=Tabella!C4),Tabella!L4,IF(AND('Config. Data'!E30='Config. Data'!E4,QQT!B27=Tabella!C4),Tabella!M4,IF(AND('Config. Data'!E30='Config. Data'!E5,QQT!B27=Tabella!C4),Tabella!N4,IF(AND('Config. Data'!E30='Config. Data'!E6,QQT!B27=Tabella!C4),Tabella!O4,IF(AND('Config. Data'!E30='Config. Data'!E7,QQT!B27=Tabella!C4),Tabella!P4,IF(AND('Config. Data'!E30='Config. Data'!E8,QQT!B27=Tabella!C4),Tabella!Q4,IF(AND('Config. Data'!E30='Config. Data'!E9,QQT!B27=Tabella!C4),Tabella!R4,IF(AND('Config. Data'!E30='Config. Data'!E2,QQT!B27=Tabella!C5),Tabella!K5,IF(AND('Config. Data'!E30='Config. Data'!E3,QQT!B27=Tabella!C5),Tabella!L5,IF(AND('Config. Data'!E30='Config. Data'!E4,QQT!B27=Tabella!C5),Tabella!M5,IF(AND('Config. Data'!E30='Config. Data'!E5,QQT!B27=Tabella!C5),Tabella!N5,IF(AND('Config. Data'!E30='Config. Data'!E6,QQT!B27=Tabella!C5),Tabella!O5,IF(AND('Config. Data'!E30='Config. Data'!E7,QQT!B27=Tabella!C5),Tabella!P5,IF(AND('Config. Data'!E30='Config. Data'!E8,QQT!B27=Tabella!C5),Tabella!Q5,IF(AND('Config. Data'!E30='Config. Data'!E9,QQT!B27=Tabella!C3),Tabella!R5,IF(AND('Config. Data'!E30='Config. Data'!E2,QQT!B27=Tabella!C6),Tabella!K6,IF(AND('Config. Data'!E30='Config. Data'!E3,QQT!B27=Tabella!C6),Tabella!L6,IF(AND('Config. Data'!E30='Config. Data'!E4,QQT!B27=Tabella!C6),Tabella!M6,IF(AND('Config. Data'!E30='Config. Data'!E5,QQT!B27=Tabella!C6),Tabella!N6,IF(AND('Config. Data'!E30='Config. Data'!E6,QQT!B27=Tabella!C6),Tabella!O6,IF(AND('Config. Data'!E30='Config. Data'!E7,QQT!B27=Tabella!C6),Tabella!P6,IF(AND('Config. Data'!E30='Config. Data'!E8,QQT!B27=Tabella!C6),Tabella!Q6,IF(AND('Config. Data'!E30='Config. Data'!E9,QQT!B27=Tabella!C6),Tabella!R6,IF(AND('Config. Data'!E30='Config. Data'!E2,QQT!B27=Tabella!C7),Tabella!K7,IF(AND('Config. Data'!E30='Config. Data'!E3,QQT!B27=Tabella!C7),Tabella!L7,IF(AND('Config. Data'!E30='Config. Data'!E4,QQT!B27=Tabella!C7),Tabella!M7,IF(AND('Config. Data'!E30='Config. Data'!E5,QQT!B27=Tabella!C7),Tabella!N7,IF(AND('Config. Data'!E30='Config. Data'!E6,QQT!B27=Tabella!C7),Tabella!O7,IF(AND('Config. Data'!E30='Config. Data'!E7,QQT!B27=Tabella!C7),Tabella!P7,IF(AND('Config. Data'!E30='Config. Data'!E8,QQT!B27=Tabella!C7),Tabella!Q7,IF(AND('Config. Data'!E30='Config. Data'!E9,QQT!B27=Tabella!C7),Tabella!R7,IF(AND('Config. Data'!E30='Config. Data'!E2,QQT!B27=Tabella!C8),Tabella!K8,IF(AND('Config. Data'!E30='Config. Data'!E3,QQT!B27=Tabella!C8),Tabella!L8,IF(AND('Config. Data'!E30='Config. Data'!E4,QQT!B27=Tabella!C8),Tabella!M8,IF(AND('Config. Data'!E30='Config. Data'!E5,QQT!B27=Tabella!C8),Tabella!N8,IF(AND('Config. Data'!E30='Config. Data'!E6,QQT!B27=Tabella!C8),Tabella!O8,IF(AND('Config. Data'!E30='Config. Data'!E7,QQT!B27=Tabella!C8),Tabella!P8,IF(AND('Config. Data'!E30='Config. Data'!E8,QQT!B27=Tabella!C8),Tabella!Q8,IF(AND('Config. Data'!E30='Config. Data'!E9,QQT!B27=Tabella!C8),Tabella!R8,IF('Config. Data'!E30='Config. Data'!E18,'Config. Data'!E18,IF('Config. Data'!E30='Config. Data'!E19,'Config. Data'!E19,'Config. Data'!E16))))))))))))))))))))))))))))))))))))))))))))))))))","v":"Select Size, Weight, Thickness, Metal, Geometry and Feature"},{"$f":"IFERROR(VLOOKUP($B30,'Price List'!C2:D195,2,FALSE),\"Description\")","v":"Description"},{"$f":"IFERROR(VLOOKUP($B30,'Price List'!$C$2:$D$195,3,FALSE),\"Price\")","v":"Price"}]
["Diverter",{"$f":"IF(AND(C13='Config. Data'!C9,'Config. Data'!E30='Config. Data'!E2,B27=Tabella!C3),Tabella!T3,IF(AND(C13='Config. Data'!C9,'Config. Data'!E30='Config. Data'!E2,B27=Tabella!C4),Tabella!T4,IF(AND(C13='Config. Data'!C9,'Config. Data'!E30='Config. Data'!E2,B27=Tabella!C5),Tabella!T5,IF(AND(C13='Config. Data'!C9,'Config. Data'!E30='Config. Data'!E2,B27=Tabella!C6),Tabella!T6,IF(AND(C13='Config. Data'!C9,'Config. Data'!E30='Config. Data'!E2,B27=Tabella!C7),Tabella!T7,IF(AND(C13='Config. Data'!C9,'Config. Data'!E30='Config. Data'!E2,B27=Tabella!C8),Tabella!T8,IF(AND(C13='Config. Data'!C9,'Config. Data'!E30='Config. Data'!E4,B27=Tabella!C3),Tabella!T3,IF(AND(C13='Config. Data'!C9,'Config. Data'!E30='Config. Data'!E4,B27=Tabella!C4),Tabella!T4,IF(AND(C13='Config. Data'!C9,'Config. Data'!E30='Config. Data'!E4,B27=Tabella!C5),Tabella!T5,IF(AND(C13='Config. Data'!C9,'Config. Data'!E30='Config. Data'!E4,B27=Tabella!C6),Tabella!T6,IF(AND(C13='Config. Data'!C9,'Config. Data'!E30='Config. Data'!E4,B27=Tabella!C7),Tabella!T7,IF(AND(C13='Config. Data'!C9,'Config. Data'!E30='Config. Data'!E4,B27=Tabella!C8),Tabella!T8,IF(AND(C13='Config. Data'!C9,'Config. Data'!E30='Config. Data'!E5,B27=Tabella!C3),Tabella!T3,IF(AND(C13='Config. Data'!C9,'Config. Data'!E30='Config. Data'!E5,B27=Tabella!C4),Tabella!T4,IF(AND(C13='Config. Data'!C9,'Config. Data'!E30='Config. Data'!E5,B27=Tabella!C5),Tabella!T5,IF(AND(C13='Config. Data'!C9,'Config. Data'!E30='Config. Data'!E5,B27=Tabella!C6),Tabella!T6,IF(AND(C13='Config. Data'!C9,'Config. Data'!E30='Config. Data'!E5,B27=Tabella!C7),Tabella!T7,IF(AND(C13='Config. Data'!C9,'Config. Data'!E30='Config. Data'!E5,B27=Tabella!C8),Tabella!T8,IF(AND(C13='Config. Data'!C9,'Config. Data'!E30='Config. Data'!E6,B27=Tabella!C3),Tabella!T3,IF(AND(C13='Config. Data'!C9,'Config. Data'!E30='Config. Data'!E6,B27=Tabella!C4),Tabella!T4,IF(AND(C13='Config. Data'!C9,'Config. Data'!E30='Config. Data'!E6,B27=Tabella!C5),Tabella!T5,IF(AND(C13='Config. Data'!C9,'Config. Data'!E30='Config. Data'!E6,B27=Tabella!C6),Tabella!T6,IF(AND(C13='Config. Data'!C9,'Config. Data'!E30='Config. Data'!E6,B27=Tabella!C7),Tabella!T7,IF(AND(C13='Config. Data'!C9,'Config. Data'!E30='Config. Data'!E6,B27=Tabella!C8),Tabella!T8,IF(AND(C13='Config. Data'!C9,'Config. Data'!E30='Config. Data'!E8,B27=Tabella!C3),Tabella!T3,IF(AND(C13='Config. Data'!C9,'Config. Data'!E30='Config. Data'!E8,B27=Tabella!C4),Tabella!T4,IF(AND(C13='Config. Data'!C9,'Config. Data'!E30='Config. Data'!E8,B27=Tabella!C5),Tabella!T5,IF(AND(C13='Config. Data'!C9,'Config. Data'!E30='Config. Data'!E8,B27=Tabella!C6),Tabella!T6,IF(AND(C13='Config. Data'!C9,'Config. Data'!E30='Config. Data'!E8,B27=Tabella!C7),Tabella!T7,IF(AND(C13='Config. Data'!C9,'Config. Data'!E30='Config. Data'!E8,B27=Tabella!C8),Tabella!T8,IF(AND(C13='Config. Data'!C9,'Config. Data'!E30='Config. Data'!E9,B27=Tabella!C3),Tabella!T3,IF(AND(C13='Config. Data'!C9,'Config. Data'!E30='Config. Data'!E9,B27=Tabella!C4),Tabella!T4,IF(AND(C13='Config. Data'!C9,'Config. Data'!E30='Config. Data'!E9,B27=Tabella!C5),Tabella!T5,IF(AND(C13='Config. Data'!C9,'Config. Data'!E30='Config. Data'!E9,B27=Tabella!C6),Tabella!T6,IF(AND(C13='Config. Data'!C9,'Config. Data'!E30='Config. Data'!E9,B27=Tabella!C7),Tabella!T7,IF(AND(C13='Config. Data'!C9,'Config. Data'!E30='Config. Data'!E9,B27=Tabella!C8),Tabella!T8,IF(OR(AND(QQT!C13='Config. Data'!C10,QQT!C14='Config. Data'!C12,'Config. Data'!E30='Config. Data'!E2),AND(QQT!C13='Config. Data'!C10,QQT!C14='Config. Data'!C12,'Config. Data'!E30='Config. Data'!E4),AND(QQT!C13='Config. Data'!C10,QQT!C14='Config. Data'!C12,'Config. Data'!E30='Config. Data'!E5),AND(QQT!C13='Config. Data'!C10,QQT!C14='Config. Data'!C12,'Config. Data'!E30='Config. Data'!E6),AND(QQT!C13='Config. Data'!C10,QQT!C14='Config. Data'!C12,'Config. Data'!E30='Config. Data'!E8),AND(QQT!C13='Config. Data'!C10,QQT!C14='Config. Data'!C12,'Config. Data'!E30='Config. Data'!E9),AND(QQT!C13='Config. Data'!C10,QQT!C14='Config. Data'!C13,'Config. Data'!E30='Config. Data'!E2),AND(QQT!C13='Config. Data'!C10,QQT!C14='Config. Data'!C13,'Config. Data'!E30='Config. Data'!E4),AND(QQT!C13='Config. Data'!C10,QQT!C14='Config. Data'!C13,'Config. Data'!E30='Config. Data'!E5),AND(QQT!C13='Config. Data'!C10,QQT!C14='Config. Data'!C13,'Config. Data'!E30='Config. Data'!E6),AND(QQT!C13='Config. Data'!C10,QQT!C14='Config. Data'!C13,'Config. Data'!E30='Config. Data'!E8),AND(QQT!C13='Config. Data'!C10,QQT!C14='Config. Data'!C13,'Config. Data'!E30='Config. Data'!E9)),'Config. Data'!E13,IF(AND(OR('Config. Data'!E30='Config. Data'!E3,'Config. Data'!E30='Config. Data'!E7),B27=Tabella!C3),Tabella!S3,IF(AND(OR('Config. Data'!E30='Config. Data'!E3,'Config. Data'!E30='Config. Data'!E7),B27=Tabella!C4),Tabella!S4,IF(AND(OR('Config. Data'!E30='Config. Data'!E3,'Config. Data'!E30='Config. Data'!E7),B27=Tabella!C5),Tabella!S5,IF(AND(OR('Config. Data'!E30='Config. Data'!E3,'Config. Data'!E30='Config. Data'!E7),B27=Tabella!C6),Tabella!S6,IF(AND(OR('Config. Data'!E30='Config. Data'!E3,'Config. Data'!E30='Config. Data'!E7),B27=Tabella!C7),Tabella!S7,IF(AND(OR('Config. Data'!E30='Config. Data'!E3,'Config. Data'!E30='Config. Data'!E7),B27=Tabella!C8),Tabella!S8,'Config. Data'!E19)))))))))))))))))))))))))))))))))))))))))))","v":"Select Size, Weight, Thickness, Metal, Geometry and Feature"},{"$f":"IFERROR(VLOOKUP($B31,'Price List'!C2:D195,2,FALSE),\"Description\")","v":"Description"},{"$f":"IFERROR(VLOOKUP($B31,'Price List'!$C$2:$D$195,3,FALSE),\"Price\")","v":"Price"}]
["Top Light",{"$f":"IF(AND(QQT!C21='Config. Data'!C43,QQT!C22='Config. Data'!C45),Tabella!L11,IF(AND(QQT!C21='Config. Data'!C43,QQT!C22='Config. Data'!C46),Tabella!L12,IF(AND(QQT!C21='Config. Data'!C43,QQT!C22='Config. Data'!C47),Tabella!L13,IF(QQT!C21='Config. Data'!C42,'Config. Data'!E25,'Config. Data'!E23))))","v":"Select Top Light and Light Color"},{"$f":"IFERROR(VLOOKUP($B32,'Price List'!C2:D195,2,FALSE),\"Description\")","v":"Description"},{"$f":"IFERROR(VLOOKUP($B32,'Price List'!$C$2:$D$195,3,FALSE),\"Price\")","v":"Price"}]
["Quick Emptying",{"$f":"IF(AND(QQT!C23='Config. Data'!C50,QQT!B27=Tabella!C3),Tabella!U3,IF(AND(QQT!C23='Config. Data'!C50,QQT!B27=Tabella!C4),Tabella!U4,IF(AND(QQT!C23='Config. Data'!C50,QQT!B27=Tabella!C5),Tabella!U5,IF(AND(QQT!C23='Config. Data'!C50,QQT!B27=Tabella!C6),Tabella!U6,IF(AND(QQT!C23='Config. Data'!C50,QQT!B27=Tabella!C7),Tabella!U7,IF(AND(QQT!C23='Config. Data'!C50,QQT!B27=Tabella!C8),Tabella!U8,IF(QQT!C23='Config. Data'!C49,'Config. Data'!E25,'Config. Data'!E24)))))))","v":"Select Size, Weight, Thickness and Quick Emptying"},{"$f":"IFERROR(VLOOKUP($B33,'Price List'!C4:D195,2,FALSE),\"Description\")","v":"Description"},{"$f":"IFERROR(VLOOKUP($B33,'Price List'!$C$2:$D$195,3,FALSE),\"Price\")","v":"Price"}]
[]
["Not that much, huh?",null,"Total:",{"$f":"SUM(D27:D33)","v":0}]
[]
[null,"DISCLAIMER"]
[null,"The products, P/Ns and descriptions shown herein may be revised or improved at any time."]
[null,"The descriptions, technical and operational data as well as other details specified herein do not have any contractual value and therefore must be considered only as indication."]
[null,"The products must be installed and used by qualified personnel and in compliance with the regulations in force for machineries in order to avoid damage and safety hazards."]

{"sheet":"Simulation","index":1,"n_rows":30,"n_cols":2,"rows_kept":30,"cut":false,"hidden":false,"merged":[[1,1,1,10]]}
[]
[null,"Products Simulation (the yellow line is the Footprint)"]
[]
[null,"Size: 1600 (L=80, l=20)"]
[null,"Min Thickness: >2,5 mm"]
[null,"Number of Stable States: 1"]
[null,"Metal Parts: No"]
[null,"Geometry: Cylindrical > 20 mm"]
[]
[]
[null,"Size: 1750 (L=70, l=25)"]
[null,"Min Thickness: >2,5 mm"]
[null,"Number of Stable States: 2"]
[null,"Metal Parts: Yes"]
[null,"Geometry: Flat"]
[]
[]
[null,"Size: 1500 (L=60, l=25)"]
[null,"Min Thickness: <=2,5 mm"]
[null,"Number of Stable States: >3"]
[null,"Metal Parts: Yes"]
[null,"Geometry: Complex"]
[null,"Characteristic: Dirty/ Oily"]
[]
[null,"Size: 600 (L=30, l=20)"]
[null,"Min Thickness: <=2,5 mm"]
[null,"Number of Stable States: 2"]
[null,"Metal Parts: Yes"]
[null,"Geometry: Complex"]
[null,"Characteristic: Dirty/ Oily"]

{"sheet":"Price List","index":2,"n_rows":195,"n_cols":4,"rows_kept":195,"cut":false,"hidden":true,"merged":[]}
[]
[null,null,"GM000392.00","FlexiBowl 200C/E"]
[null,null,"GM000399.00","FlexiBowl 200CC/E"]
[null,null,"GM000019.00","FlexiBowl 350C/E"]
[null,null,"GM000370.00","FlexiBowl 350CC/E"]
[null,null,"GM000020.00","FlexiBowl 500C"]
[null,null,"GM000021.00","FlexiBowl 500CC"]
[null,null,"GM000217.00","FlexiBowl 500C/E"]
[null,null,"GM000218.00","FlexiBowl 500CC/E"]
[null,null,"GM000215.00","FlexiBowl 650C"]
[null,null,"GM000216.00","FlexiBowl 650CC"]
[null,null,"GM000117.00","FlexiBowl 800C"]
[null,null,"GM000118.00","FlexiBowl 800CC"]
[]
[null,null,"PC000001.00","FlexiVision 200/350 Bundle "]
[null,null,"PC000002.00","FlexiVision 200/350 Bundle IR "]
[null,null,"PC000003.00","FlexiVision 500 Bundle"]
[null,null,"PC000004.00","FlexiVision 500 Bundle IR"]
[null,null,"PC000005.00","FlexiVision 650/800 Bundle"]
[null,null,"PC000006.00","FlexiVision 650/800 Bundle IR"]
[]
[null,null,"PC000007.00","FlexiVision 200/350 Dual Bundle"]
[null,null,"PC000008.00","FlexiVision 200/350 Dual Bundle IR"]
[null,null,"PC000009.00","FlexiVision 500 Dual Bundle"]
[null,null,"PC000010.00","FlexiVision 500 Dual Bundle IR"]
[null,null,"PC000011.00","FlexiVision 650/800 Dual Bundle"]
[null,null,"PC000012.00","FlexiVision 650/800 Dual Bundle IR"]
[]
[null,null,"CE000331.00","200 White Backlight"]
[null,null,"CE000278.00","200 IR Backlight"]
[null,null,"CE000351.00","200 Red Backlight"]
[null,null,"CE000341.00","350 White Backlight"]
[null,null,"CE000275.00","350 IR Backlight"]
[null,null,"CE000342.00","350 Red Backlight"]
[null,null,"CE000343.00","500 White Backlight"]
[null,null,"CE000272.00","500 IR Backlight"]
[null,null,"CE000344.00","500 Red Backlight"]
[null,null,"CE000305.00","650 White Backlight"]
[null,null,"CE000273.00","650 IR Backlight"]
[null,null,"CE000306.00","650 Red Backlight"]
[null,null,"CE000346.00","800 White Backlight"]
[null,null,"CE000274.00","800 IR Backlight"]
[null,null,"CE000345.00","800 Red Backlight"]
[]
[null,null,"CE000104.00","White Flat Dome 5030"]
[null,null,"CE000105.00","Red Flat Dome 5030"]
[null,null,"CE000106.00","IR Flat Dome 5030"]
[]
[null,null,"GM000282.00","Air Blow C Type"]
[null,null,"GM000371.00","Air Blow E Type"]
[]
[null,null,"GM000348.00","Brush Diverter 500C/CC"]
[null,null,"GM000349.00","Brush Diverter 650C/CC"]
[null,null,"GM000350.00","Brush Diverter 800C/CC"]
[]
[null,null,"GM000454.00","Wedge Diverter 500C/CC"]
[null,null,"GM000455.00","Wedge Diverter 650C/CC"]
[null,null,"GM000456.00","Wedge Diverter 800C/CC"]
[]
[null,null,"GM000443.00","Quick Emptying Feature 500C"]
[null,null,"GM000445.00","Quick Emptying Feature 650C"]
[null,null,"GM000441.00","Quick Emptying Feature 800C"]
[null,null,"GM000444.00","Quick Emptying Feature 500CC"]
[null,null,"GM000446.00","Quick Emptying Feature 650CC"]
[null,null,"GM000442.00","Quick Emptying Feature 800CC"]
[]
[null,null,"PD000033.00","Rotary Disc Standard White FDA 800"]
[null,null,"PD000139.00","Rotary Disc Silicon White FDA 800"]
[null,null,"PD000140.00","Rotary Disc Smooth Blue FDA 800"]
[null,null,"PD000141.00","Rotary Disc Diamond Blue FDA 800"]
[null,null,"PD000142.00","Rotary Disc Spike Beige FDA 800"]
[null,null,"PD001209.00","Rotary Disc Flat Beige FDA 800"]
[null,null,"PD000143.00","Rotary Disc Diamond Black 800"]
[null,null,"PD000144.00","Rotary Disc GSTR Black 800"]
[null,null,"PD000150.00","Rotary Disc Fabric Transparent FDA 800"]
[null,null,"PD000145.00","Rotary Disc GSTR White FDA 800"]
[null,null,"PD000146.00","Rotary Disc Diamond White FDA 800"]
[null,null,"PD000147.00","Rotary Disc Spike Transparent FDA 800"]
[null,null,"PD000148.00","Rotary Disc Silicon Transparent FDA 800"]
[null,null,"PD000137.00","Rotary Disc Standard Transparent FDA 800"]
[null,null,"PD000165.00","Rotary Disc Smooth Black 800"]
[null,null,"PD000794.00","Rotary Disc Smooth Green 800"]
[null,null,"PD001253.00","Rotary Disc Polibech White FDA 800"]
[null,null,"PD000358.00","Rotary Disc Spike Blue FDA 800"]
[]
[null,null,"PD000151.00","Rotary Disc Standard White FDA 650"]
[null,null,"PD000152.00","Rotary Disc Silicon White FDA 650"]
[null,null,"PD000153.00","Rotary Disc Smooth Blue FDA 650"]
[null,null,"PD000154.00","Rotary Disc Diamond Blue FDA 650"]
[null,null,"PD000155.00","Rotary Disc Spike Beige FDA 650"]
[null,null,"PD001004.00","Rotary Disc Flat Beige FDA 650"]
[null,null,"PD000156.00","Rotary Disc Diamond Black 650"]
[null,null,"PD000157.00","Rotary Disc GSTR Black 650"]
[null,null,"PD000158.00","Rotary Disc Fabric Transparent FDA 650"]
[null,null,"PD000159.00","Rotary Disc GSTR White FDA 650"]
[null,null,"PD000160.00","Rotary Disc Diamond White FDA 650"]
[null,null,"PD000161.00","Rotary Disc Spike Transparent FDA 650"]
[null,null,"PD000162.00","Rotary Disc Silicon Transparent FDA 650"]
[null,null,"PD000032.00","Rotary Disc Standard Transparent FDA 650"]
[null,null,"PD000166.00","Rotary Disc Smooth Black 650"]
[null,null,"PD000164.00","Rotary Disc Smooth Green 650"]
[null,null,"PD001252.00","Rotary Disc Polibech White FDA 650"]
[null,null,"PD000359.00","Rotary Disc Spike Blue FDA 650"]
[]
[null,null,"PD000167.00","Rotary Disc Standard White FDA 500"]
[null,null,"PD000169.00","Rotary Disc Silicon White FDA 500"]
[null,null,"PD000170.00","Rotary Disc Smooth Blue FDA 500"]
[null,null,"PD000171.00","Rotary Disc Diamond Blue FDA 500"]
[null,null,"PD000172.00","Rotary Disc Spike Beige FDA 500"]
[null,null,"PD001056.00","Rotary Disc Flat Beige FDA 500"]
[null,null,"PD000173.00","Rotary Disc Diamond Black 500"]
[null,null,"PD000174.00","Rotary Disc GSTR Black 500"]
[null,null,"PD000175.00","Rotary Disc Fabric Transparent FDA 500"]
[null,null,"PD000176.00","Rotary Disc GSTR White FDA 500"]
[null,null,"PD000177.00","Rotary Disc Diamond White FDA 500"]
[null,null,"PD000178.00","Rotary Disc Spike Transparent FDA 500"]
[null,null,"PD000179.00","Rotary Disc Silicon Transparent FDA 500"]
[null,null,"PD000031.00","Rotary Disc Standard Transparent FDA 500"]
[null,null,"PD000181.00","Rotary Disc Smooth Black 500"]
[null,null,"PD000796.00","Rotary Disc Smooth Green 500"]
[null,null,"PD001251.00","Rotary Disc Polibech White FDA 500"]
[null,null,"PD000360.00","Rotary Disc Spike Blue FDA 500"]
[]
[null,null,"GM000433.00","Round-Edged Disc Standard White FDA 500"]
[null,null,"GM000432.00","Round-Edged Disc Silicon White FDA 500"]
[null,null,"GM000431.00","Round-Edged Disc Smooth Blue FDA 500"]
[null,null,"GM000435.00","Round-Edged Disc Diamond Blue FDA 500"]
[null,null,"GM000457.00","Round-Edged Disc Flat Beige FDA 500"]
[null,null,null,"Round-Edged Disc Diamond Black 500"]
[null,null,"GM000439.00","Round-Edged Disc GSTR Black 500"]
[null,null,"GM000434.00","Round-Edged Disc Fabric Transparent FDA 500"]
[null,null,"GM000440.00","Round-Edged Disc GSTR White FDA 500"]
[null,null,"GM000462.00","Round-Edged Disc Diamond White FDA 500"]
[null,null,"GM000437.00","Round-Edged Disc Silicon Transparent FDA 500"]
[null,null,"GM000428.00","Round-Edged Disc Standard Transparent FDA 500"]
[null,null,"GM000429.00","Round-Edged Disc Smooth Green 500"]
[null,null,"GM000436.00","Round-Edged Disc Polibech White FDA 500"]
[null,null,"GM000430.00","Round-Edged Disc Smooth Black 500"]
[null,null,"GM000438.00","Round-Edged Disc Spike Transparent FDA 500"]
[]
[null,null,"GM000423.00","Round-Edged Disc Standard White FDA 350"]
[null,null,"GM000419.00","Round-Edged Disc Silicon White FDA 350"]
[null,null,"GM000425.00","Round-Edged Disc Smooth Blue FDA 350"]
[null,null,"GM000420.00","Round-Edged Disc Diamond Blue FDA 350"]
[null,null,"GM000459.00","Round-Edged Disc Flat Beige FDA 350"]
[null,null,null,"Round-Edged Disc Diamond Black 350"]
[null,null,"GM000426.00","Round-Edged Disc GSTR Black 350"]
[null,null,"GM000422.00","Round-Edged Disc Fabric Transparent FDA 350"]
[null,null,"GM000417.00","Round-Edged Disc GSTR White FDA 350"]
[null,null,"GM000460.00","Round-Edged Disc Diamond White FDA 350"]
[null,null,"GM000416.00","Round-Edged Disc Silicon Transparent FDA 350"]
[null,null,"GM000415.00","Round-Edged Disc Standard Transparent FDA 350"]
[null,null,"GM000427.00","Round-Edged Disc Smooth Green 350"]
[null,null,"GM000421.00","Round-Edged Disc Polibech White FDA 350"]
[null,null,"GM000424.00","Round-Edged Disc Smooth Black 350"]
[null,null,"GM000418.00","Round-Edged Disc Spike Transparent FDA 350"]
[]
[null,null,"GM000411.00","Round-Edged Disc Standard White FDA 200"]
[null,null,"GM000409.00","Round-Edged Disc Silicon White FDA 200"]
[null,null,"GM000408.00","Round-Edged Disc Smooth Blue FDA 200"]
[null,null,"GM000414.00","Round-Edged Disc Diamond Blue FDA 200"]
[null,null,"GM000457.00","Round-Edged Disc Flat Beige FDA 200"]
[null,null,null,"Round-Edged Disc Diamond Black 200"]
[null,null,"GM000406.00","Round-Edged Disc GSTR Black 200"]
[null,null,"GM000412.00","Round-Edged Disc Fabric Transparent FDA 200"]
[null,null,"GM000405.00","Round-Edged Disc GSTR White FDA 200"]
[null,null,"GM000458.00","Round-Edged Disc Diamond White FDA 200"]
[null,null,"GM000404.00","Round-Edged Disc Silicon Transparent FDA 200"]
[null,null,"GM000402.00","Round-Edged Disc Standard Transparent FDA 200"]
[null,null,"GM000403.00","Round-Edged Disc Smooth Green 200"]
[null,null,"GM000413.00","Round-Edged Disc Polibech White FDA 200"]
[null,null,"GM000410.00","Round-Edged Disc Smooth Black 200"]
[null,null,"GM000407.00","Round-Edged Disc Spike Transparent FDA 200"]
[]
[null,null,"GM000447.00","Bulk Feeder 1,5lt 220V PLASTIC"]
[null,null,"GM000268.00","Bulk Feeder 5lt 220V INOX "]
[null,null,"GM000266.00","Bulk Feeder 10lt 220V INOX "]
[null,null,"GM000290.00","Bulk Feeder 20lt 220V INOX "]
[null,null,"GM000298.00","Bulk Feeder 40lt 220V INOX "]
[]
[null,null,"GM000452.00","Bulk Feeder 1,5lt 110V PLASTIC "]
[null,null,"GM000300.00","Bulk Feeder 5lt 110V INOX "]
[null,null,"GM000299.00","Bulk Feeder 10lt 110V INOX "]
[null,null,"GM000301.00","Bulk Feeder 20lt 110V INOX "]
[null,null,"GM000302.00","Bulk Feeder 40lt 110V INOX "]
[]
[null,null,"GM000343.00","Bulk Feeder 5lt 220V INOX Polyurethane "]
[null,null,"GM000341.00","Bulk Feeder 10lt 220V INOX Polyurethane "]
[null,null,"GM000339.00","Bulk Feeder 20lt 220V INOX Polyurethane "]
[null,null,"GM000345.00","Bulk Feeder 40lt 220V INOX Polyurethane "]
[]
[null,null,"GM000344.00","Bulk Feeder 5lt 110V INOX Polyurethane "]
[null,null,"GM000342.00","Bulk Feeder 10lt 110V INOX Polyurethane "]
[null,null,"GM000340.00","Bulk Feeder 20lt 110V INOX Polyurethane "]
[null,null,"GM000346.00","Bulk Feeder 40lt 110V INOX Polyurethane "]

{"sheet":"Config. Data","index":3,"n_rows":50,"n_cols":5,"rows_kept":50,"cut":false,"hidden":true,"merged":[]}
[]
[null,"Part Size","<= 180mm^2 and L<= 10mm",null,"Rotary Disc Diamond Blue FDA"]
[null,null,"<= 354mm^2 and L<= 20mm",null,"Rotary Disc Spike Beige FDA"]
[null,null,"<= 950mm^2 and L<= 50mm",null,"Rotary Disc Flat Beige FDA"]
[null,null,"<= 1800mm^2 and L<= 110mm",null,"Rotary Disc Polibech White FDA"]
[null,null,"<= 2366mm^2 and L<= 250mm",null,"Rotary Disc Diamond White FDA"]
[null,null,"> 2366mm^2 or L> 250mm",null,"Rotary Disc Spike Transparent FDA"]
[null,null,null,null,"Rotary Disc Silicon Transparent FDA"]
[null,"Minimum Thickness (mm)","<=2,5",null,"Rotary Disc Standard Transparent FDA"]
[null,null,">2,5",null,"Air Blow"]
[null,null,null,null,"Brush Diverter"]
[null,"Weight (gr)","<=15",null,"Wedge Diverter"]
[null,null,">15",null,"Standard Diverter Included"]
[null,null,null,null,"Rotary Disc Standard Transparent Included"]
[null,"Number of Stable States","1"]
[null,null,"2",null,"Select Size, Weight And Thickness"]
[null,null,">=3",null,"Select Size, Weight, Thickness and Light Color"]
[null,null,null,null,"Check Characteristic Section"]
[null,"Average PPM (parts per min)","<=25",null,"Select Size, Weight, Thickness, Metal, Geometry and Feature"]
[null,null,"25< x <=50",null,"Select Size, Weight, Tickness and Power Supply"]
[null,null,">50",null,"Consult with ARS Tech Support"]
[null,null,null,null,"Not Available for this Model"]
[null,"Metal Part","No",null,"Select Top Light and Light Color"]
[null,null,"Yes",null,"Select Size, Weight, Thickness and Quick Emptying"]
[null,null,null,null,"Not Selected"]
[null,"Part Geometry","Flat"]
[null,null,"Cylindrical (d>=20mm)"]
[null,null,"Cylindrical (10<=dia<20mm)"]
[null,null,"Cylindrical (5<=dia<10mm)"]
[null,null,"Cylindrical (1<=dia<5mm)",null,{"$f":"IF(AND(QQT!C17=Tabella!B12,QQT!C18=Tabella!C12,QQT!C19=Tabella!B13),Tabella!C13,IF(AND(QQT!C17=Tabella!B12,QQT!C18=Tabella!C12,QQT!C19=Tabella!B14),Tabella!C14,IF(AND(QQT!C17=Tabella!B12,QQT!C18=Tabella!C12,QQT!C19=Tabella!B15),Tabella!C15,IF(AND(QQT!C17=Tabella!B12,QQT!C18=Tabella!C12,QQT!C19=Tabella!B16),Tabella!C16,IF(AND(QQT!C17=Tabella!B12,QQT!C18=Tabella!D12,QQT!C19=Tabella!B13),Tabella!D13,IF(AND(QQT!C17=Tabella!B12,QQT!C18=Tabella!D12,QQT!C19=Tabella!B14),Tabella!D14,IF(AND(QQT!C17=Tabella!B12,QQT!C18=Tabella!D12,QQT!C19=Tabella!B15),Tabella!D15,IF(AND(QQT!C17=Tabella!B12,QQT!C18=Tabella!D12,QQT!C19=Tabella!B16),Tabella!D16,IF(AND(QQT!C17=Tabella!B12,QQT!C18=Tabella!E12,QQT!C19=Tabella!B13),Tabella!E13,IF(AND(QQT!C17=Tabella!B12,QQT!C18=Tabella!E12,QQT!C19=Tabella!B14),Tabella!E14,IF(AND(QQT!C17=Tabella!B12,QQT!C18=Tabella!E12,QQT!C19=Tabella!B15),Tabella!E15,IF(AND(QQT!C17=Tabella!B12,QQT!C18=Tabella!E12,QQT!C19=Tabella!B16),Tabella!E16,IF(AND(QQT!C17=Tabella!B12,QQT!C18=Tabella!F12,QQT!C19=Tabella!B13),Tabella!F13,IF(AND(QQT!C17=Tabella!B12,QQT!C18=Tabella!F12,QQT!C19=Tabella!B14),Tabella!F14,IF(AND(QQT!C17=Tabella!B12,QQT!C18=Tabella!F12,QQT!C19=Tabella!B15),Tabella!F15,IF(AND(QQT!C17=Tabella!B12,QQT!C18=Tabella!F12,QQT!C19=Tabella!B16),Tabella!F16,IF(AND(QQT!C17=Tabella!B12,QQT!C1=Tabella!G12,QQT!C19=Tabella!B13),Tabella!G13,IF(AND(QQT!C17=Tabella!B12,QQT!C18=Tabella!G12,QQT!C19=Tabella!B14),Tabella!G14,IF(AND(QQT!C17=Tabella!B12,QQT!C18=Tabella!G12,QQT!C19=Tabella!B15),Tabella!G15,IF(AND(QQT!C17=Tabella!B12,QQT!C18=Tabella!G12,QQT!C19=Tabella!B16),Tabella!G16,IF(AND(QQT!C17=Tabella!B12,QQT!C18=Tabella!H12,QQT!C19=Tabella!B13),Tabella!H13,IF(AND(QQT!C17=Tabella!B12,QQT!C18=Tabella!H12,QQT!C19=Tabella!B14),Tabella!H14,IF(AND(QQT!C17=Tabella!B12,QQT!C18=Tabella!H12,QQT!C19=Tabella!B15),Tabella!H15,IF(AND(QQT!C17=Tabella!B12,QQT!C18=Tabella!H12,QQT!C19=Tabella!B16),Tabella!H16,IF(AND(QQT!C17=Tabella!B18,QQT!C18=Tabella!C18,QQT!C19=Tabella!B19),Tabella!C19,IF(AND(QQT!C17=Tabella!B18,QQT!C18=Tabella!C18,QQT!C19=Tabella!B20),Tabella!C20,IF(AND(QQT!C17=Tabella!B18,QQT!C18=Tabella!C18,QQT!C19=Tabella!B21),Tabella!C21,IF(AND(QQT!C17=Tabella!B18,QQT!C18=Tabella!C18,QQT!C19=Tabella!B22),Tabella!C22,IF(AND(QQT!C17=Tabella!B18,QQT!C18=Tabella!D18,QQT!C19=Tabella!B19),Tabella!D19,IF(AND(QQT!C17=Tabella!B18,QQT!C18=Tabella!D18,QQT!C19=Tabella!B20),Tabella!D20,IF(AND(QQT!C17=Tabella!B18,QQT!C18=Tabella!D18,QQT!C19=Tabella!B21),Tabella!D21,IF(AND(QQT!C17=Tabella!B18,QQT!C18=Tabella!D18,QQT!C19=Tabella!B22),Tabella!D22,IF(AND(QQT!C17=Tabella!B18,QQT!C18=Tabella!E18,QQT!C19=Tabella!B19),Tabella!E19,IF(AND(QQT!C17=Tabella!B18,QQT!C18=Tabella!E18,QQT!C19=Tabella!B20),Tabella!E20,IF(AND(QQT!C17=Tabella!B18,QQT!C18=Tabella!E18,QQT!C19=Tabella!B21),Tabella!E21,IF(AND(QQT!C17=Tabella!B18,QQT!C18=Tabella!E18,QQT!C19=Tabella!B22),Tabella!E22,IF(AND(QQT!C17=Tabella!B18,QQT!C18=Tabella!F18,QQT!C19=Tabella!B19),Tabella!F19,IF(AND(QQT!C17=Tabella!B18,QQT!C18=Tabella!F18,QQT!C19=Tabella!B20),Tabella!F20,IF(AND(QQT!C17=Tabella!B18,QQT!C18=Tabella!F18,QQT!C19=Tabella!B21),Tabella!F21,IF(AND(QQT!C17=Tabella!B18,QQT!C18=Tabella!F18,QQT!C19=Tabella!B22),Tabella!F22,IF(AND(QQT!C17=Tabella!B18,QQT!C18=Tabella!G18,QQT!C19=Tabella!B19),Tabella!G19,IF(AND(QQT!C17=Tabella!B18,QQT!C18=Tabella!G18,QQT!C19=Tabella!B20),Tabella!G20,IF(AND(QQT!C17=Tabella!B18,QQT!C18=Tabella!G18,QQT!C19=Tabella!B21),Tabella!G21,IF(AND(QQT!C17=Tabella!B18,QQT!C18=Tabella!G18,QQT!C19=Tabella!B22),Tabella!G22,IF(AND(QQT!C17=Tabella!B18,QQT!C18=Tabella!H18,QQT!C19=Tabella!B19),Tabella!H19,IF(AND(QQT!C17=Tabella!B18,QQT!C18=Tabella!H18,QQT!C19=Tabella!B20),Tabella!H20,IF(AND(QQT!C17=Tabella!B18,QQT!C18=Tabella!H18,QQT!C19=Tabella!B21),Tabella!H21,IF(AND(QQT!C17=Tabella!B18,QQT!C18=Tabella!H18,QQT!C19=Tabella!B22),Tabella!H22,'Config. Data'!E19))))))))))))))))))))))))))))))))))))))))))))))))","v":"Select Size, Weight, Thickness, Metal, Geometry and Feature"}]
[null,null,"Complex"]
[]
[null,"Part Feature","None of Them"]
[null,null,"Sticky/Tangly"]
[null,null,"Dirty/Oily"]
[null,null,"Transparent"]
[]
[null,"Power Supply","220v"]
[null,null,"110v"]
[]
[]
[null,"Top Light","No"]
[null,null,"Yes"]
[]
[null,"Light Color","IR"]
[null,null,"White"]
[null,null,"Red"]
[]
[null,"Quick Emptying","No"]
[null,null,"Yes"]

{"sheet":"Tabella","index":4,"n_rows":27,"n_cols":21,"rows_kept":27,"cut":false,"hidden":true,"merged":[[9,1,9,7]]}
[null," "]
[null,null,"FlexiBowl","Backlight IR","Backlight White","Backlight Red","Bulk Feeders 220V","Bulk Feeders 110V","Bulk Feeders 220V Poly","Bulk Feeders 110V Poly",{"$f":"'Config. Data'!E2","v":"Rotary Disc Diamond Blue FDA"},{"$f":"'Config. Data'!E3","v":"Rotary Disc Spike Beige FDA"},{"$f":"'Config. Data'!E4","v":"Rotary Disc Flat Beige FDA"},{"$f":"'Config. Data'!E5","v":"Rotary Disc Polibech White FDA"},{"$f":"'Config. Data'!E6","v":"Rotary Disc Diamond White FDA"},{"$f":"'Config. Data'!E7","v":"Rotary Disc Spike Transparent FDA"},{"$f":"'Config. Data'!E8","v":"Rotary Disc Silicon Transparent FDA"},{"$f":"'Config. Data'!E9","v":"Rotary Disc Standard Transparent FDA"},{"$f":"'Config. Data'!E12","v":"Wedge Diverter"},{"$f":"'Config. Data'!E10","v":"Air Blow"},"Quick Emptying"]
[null,"FlexiBowl 200","GM000392.00","CE000278.00","CE000331.00","CE000351.00","GM000447.00","GM000452.00","GM000447.00","GM000452.00","GM000414.00","GM000407.00","GM000457.00","GM000413.00","GM000458.00","GM000407.00","GM000404.00",{"$f":"'Config. Data'!E14","v":"Rotary Disc Standard Transparent Included"},"GM000282.00","GM000371.00",{"$f":"'Config. Data'!E22","v":"Not Available for this Model"}]
[null,"FlexiBowl 350","GM000019.00","CE000275.00","CE000341.00","CE000342.00","GM000268.00","GM000300.00","GM000343.00","GM000344.00","GM000420.00","GM000418.00","GM000459.00","GM000421.00","GM000460.00","GM000418.00","GM000416.00",{"$f":"'Config. Data'!E14","v":"Rotary Disc Standard Transparent Included"},"GM000282.00","GM000371.00",{"$f":"'Config. Data'!E22","v":"Not Available for this Model"}]
[null,"FlexiBowl 500","GM000020.00","CE000272.00","CE000343.00","CE000344.00","GM000266.00","GM000299.00","GM000341.00","GM000344.00","PD000171.00","PD000172.00","PD001056.00","PD001251.00","PD000177.00","PD000178.00","PD000179.00",{"$f":"'Config. Data'!E14","v":"Rotary Disc Standard Transparent Included"},"GM000454.00","GM000282.00","GM000443.00"]
[null,"FlexiBowl 500/E","GM000217.00","CE000272.00","CE000343.00","CE000344.00","GM000266.00","GM000299.00","GM000341.00","GM000342.00","GM000435.00","GM000438.00","GM000461.00","GM000436.00","GM000462.00","GM000438.00","GM000437.00",{"$f":"'Config. Data'!E14","v":"Rotary Disc Standard Transparent Included"},"GM000282.00","GM000371.00",{"$f":"'Config. Data'!E22","v":"Not Available for this Model"}]
[null,"FlexiBowl 650","GM000215.00","CE000273.00","CE000305.00","CE000306.00","GM000290.00","GM000301.00","GM000339.00","GM000340.00","PD000154.00","PD000155.00","PD001004.00","PD001252.00","PD000160.00","PD000161.00","PD000162.00",{"$f":"'Config. Data'!E14","v":"Rotary Disc Standard Transparent Included"},"GM000455.00","GM000282.00","GM000445.00"]
[null,"FlexiBowl 800","GM000117.00","CE000274.00","CE000346.00","CE000345.00","GM000298.00","GM000302.00","GM000345.00","GM000346.00","PD000141.00","PD000142.00","PD001209.00","PD001253.00","PD000146.00","PD000147.00","PD000148.00",{"$f":"'Config. Data'!E14","v":"Rotary Disc Standard Transparent Included"},"GM000456.00","GM000282.00","GM000441.00"]
[]
[null,"LOGICA "]
[null,null,null,null,null,null,null,null,null,null,null,"CE000106.00","IR Flat Dome 5030"]
["METALLO",{"$f":"'Config. Data'!C23","v":"No"},{"$f":"'Config. Data'!C26","v":"Flat"},{"$f":"'Config. Data'!C27","v":"Cylindrical (d>=20mm)"},{"$f":"'Config. Data'!C28","v":"Cylindrical (10<=dia<20mm)"},{"$f":"'Config. Data'!C29","v":"Cylindrical (5<=dia<10mm)"},{"$f":"'Config. Data'!C30","v":"Cylindrical (1<=dia<5mm)"},{"$f":"'Config. Data'!C31","v":"Complex"},null,{"$f":"IF(AND(QQT!C17=Tabella!B12,QQT!C18=Tabella!C12,QQT!C19=Tabella!B13),Tabella!C13,IF(AND(QQT!C17=Tabella!B12,QQT!C18=Tabella!C12,QQT!C19=Tabella!B14),Tabella!C14,IF(AND(QQT!C17=Tabella!B12,QQT!C18=Tabella!C12,QQT!C19=Tabella!B15),Tabella!C15,IF(AND(QQT!C17=Tabella!B12,QQT!C18=Tabella!C12,QQT!C19=Tabella!B16),Tabella!C16,IF(AND(QQT!C17=Tabella!B12,QQT!C18=Tabella!D12,QQT!C19=Tabella!B13),Tabella!D13,IF(AND(QQT!C17=Tabella!B12,QQT!C18=Tabella!D12,QQT!C19=Tabella!B14),Tabella!D14,IF(AND(QQT!C17=Tabella!B12,QQT!C18=Tabella!D12,QQT!C19=Tabella!B15),Tabella!D15,IF(AND(QQT!C17=Tabella!B12,QQT!C18=Tabella!D12,QQT!C19=Tabella!B16),Tabella!D16,IF(AND(QQT!C17=Tabella!B12,QQT!C18=Tabella!E12,QQT!C19=Tabella!B13),Tabella!E13,IF(AND(QQT!C17=Tabella!B12,QQT!C18=Tabella!E12,QQT!C19=Tabella!B14),Tabella!E14,IF(AND(QQT!C17=Tabella!B12,QQT!C18=Tabella!E12,QQT!C19=Tabella!B15),Tabella!E15,IF(AND(QQT!C17=Tabella!B12,QQT!C18=Tabella!E12,QQT!C19=Tabella!B16),Tabella!E16,IF(AND(QQT!C17=Tabella!B12,QQT!C18=Tabella!F12,QQT!C19=Tabella!B13),Tabella!F13,IF(AND(QQT!C17=Tabella!B12,QQT!C18=Tabella!F12,QQT!C19=Tabella!B14),Tabella!F14,IF(AND(QQT!C17=Tabella!B12,QQT!C18=Tabella!F12,QQT!C19=Tabella!B15),Tabella!F15,IF(AND(QQT!C17=Tabella!B12,QQT!C18=Tabella!F12,QQT!C19=Tabella!B16),Tabella!F16,IF(AND(QQT!C17=Tabella!B12,QQT!C1=Tabella!G12,QQT!C19=Tabella!B13),Tabella!G13,IF(AND(QQT!C17=Tabella!B12,QQT!C18=Tabella!G12,QQT!C19=Tabella!B14),Tabella!G14,IF(AND(QQT!C17=Tabella!B12,QQT!C18=Tabella!G12,QQT!C19=Tabella!B15),Tabella!G15,IF(AND(QQT!C17=Tabella!B12,QQT!C18=Tabella!G12,QQT!C19=Tabella!B16),Tabella!G16,IF(AND(QQT!C17=Tabella!B12,QQT!C18=Tabella!H12,QQT!C19=Tabella!B13),Tabella!H13,IF(AND(QQT!C17=Tabella!B12,QQT!C18=Tabella!H12,QQT!C19=Tabella!B14),Tabella!H14,IF(AND(QQT!C17=Tabella!B12,QQT!C18=Tabella!H12,QQT!C19=Tabella!B15),Tabella!H15,IF(AND(QQT!C17=Tabella!B12,QQT!C18=Tabella!H12,QQT!C19=Tabella!B16),Tabella!H16,IF(AND(QQT!C17=Tabella!B18,QQT!C18=Tabella!C18,QQT!C19=Tabella!B19),Tabella!C19,IF(AND(QQT!C17=Tabella!B18,QQT!C18=Tabella!C18,QQT!C19=Tabella!B20),Tabella!C20,IF(AND(QQT!C17=Tabella!B18,QQT!C18=Tabella!C18,QQT!C19=Tabella!B21),Tabella!C21,IF(AND(QQT!C17=Tabella!B18,QQT!C18=Tabella!C18,QQT!C19=Tabella!B22),Tabella!C22,IF(AND(QQT!C17=Tabella!B18,QQT!C18=Tabella!D18,QQT!C19=Tabella!B19),Tabella!D19,IF(AND(QQT!C17=Tabella!B18,QQT!C18=Tabella!D18,QQT!C19=Tabella!B20),Tabella!D20,IF(AND(QQT!C17=Tabella!B18,QQT!C18=Tabella!D18,QQT!C19=Tabella!B21),Tabella!D21,IF(AND(QQT!C17=Tabella!B18,QQT!C18=Tabella!D18,QQT!C19=Tabella!B22),Tabella!D22,IF(AND(QQT!C17=Tabella!B18,QQT!C18=Tabella!E18,QQT!C19=Tabella!B19),Tabella!E19,IF(AND(QQT!C17=Tabella!B18,QQT!C18=Tabella!E18,QQT!C19=Tabella!B20),Tabella!E20,IF(AND(QQT!C17=Tabella!B18,QQT!C18=Tabella!E18,QQT!C19=Tabella!B21),Tabella!E21,IF(AND(QQT!C17=Tabella!B18,QQT!C18=Tabella!E18,QQT!C19=Tabella!B22),Tabella!E22,IF(AND(QQT!C17=Tabella!B18,QQT!C18=Tabella!F18,QQT!C19=Tabella!B19),Tabella!F19,IF(AND(QQT!C17=Tabella!B18,QQT!C18=Tabella!F18,QQT!C19=Tabella!B20),Tabella!F20,IF(AND(QQT!C17=Tabella!B18,QQT!C18=Tabella!F18,QQT!C19=Tabella!B21),Tabella!F21,IF(AND(QQT!C17=Tabella!B18,QQT!C18=Tabella!F18,QQT!C19=Tabella!B22),Tabella!F22,IF(AND(QQT!C17=Tabella!B18,QQT!C18=Tabella!G18,QQT!C19=Tabella!B19),Tabella!G19,IF(AND(QQT!C17=Tabella!B18,QQT!C18=Tabella!G18,QQT!C19=Tabella!B20),Tabella!G20,IF(AND(QQT!C17=Tabella!B18,QQT!C18=Tabella!G18,QQT!C19=Tabella!B21),Tabella!G21,IF(AND(QQT!C17=Tabella!B18,QQT!C18=Tabella!G18,QQT!C19=Tabella!B22),Tabella!G22,IF(AND(QQT!C17=Tabella!B18,QQT!C18=Tabella!H18,QQT!C19=Tabella!B19),Tabella!H19,IF(AND(QQT!C17=Tabella!B18,QQT!C18=Tabella!H18,QQT!C19=Tabella!B20),Tabella!H20,IF(AND(QQT!C17=Tabella!B18,QQT!C18=Tabella!H18,QQT!C19=Tabella!B21),Tabella!H21,IF(AND(QQT!C17=Tabella!B18,QQT!C18=Tabella!H18,QQT!C19=Tabella!B22),Tabella!H22,'Config. Data'!E19))))))))))))))))))))))))))))))))))))))))))))))))","v":"Select Size, Weight, Thickness, Metal, Geometry and Feature"},null,"CE000104.00","White Flat Dome 5030"]
[null,{"$f":"'Config. Data'!C33","v":"None of Them"},{"$f":"'Config. Data'!$E$9","v":"Rotary Disc Standard Transparent FDA"},{"$f":"'Config. Data'!$E$3","v":"Rotary Disc Spike Beige FDA"},{"$f":"'Config. Data'!$E$7","v":"Rotary Disc Spike Transparent FDA"},{"$f":"'Config. Data'!$E$5","v":"Rotary Disc Polibech White FDA"},{"$f":"'Config. Data'!$E$2","v":"Rotary Disc Diamond Blue FDA"},{"$f":"'Config. Data'!$E$9","v":"Rotary Disc Standard Transparent FDA"},null,null,null,"CE000105.00","Red Flat Dome 5030"]
[null,{"$f":"'Config. Data'!C34","v":"Sticky/Tangly"},{"$f":"'Config. Data'!$E$2","v":"Rotary Disc Diamond Blue FDA"},{"$f":"'Config. Data'!$E$3","v":"Rotary Disc Spike Beige FDA"},{"$f":"'Config. Data'!$E$7","v":"Rotary Disc Spike Transparent FDA"},{"$f":"'Config. Data'!$E$5","v":"Rotary Disc Polibech White FDA"},{"$f":"'Config. Data'!$E$2","v":"Rotary Disc Diamond Blue FDA"},{"$f":"'Config. Data'!$E$2","v":"Rotary Disc Diamond Blue FDA"}]
[null,{"$f":"'Config. Data'!C35","v":"Dirty/Oily"},{"$f":"'Config. Data'!$E$2","v":"Rotary Disc Diamond Blue FDA"},{"$f":"'Config. Data'!$E$3","v":"Rotary Disc Spike Beige FDA"},{"$f":"'Config. Data'!$E$7","v":"Rotary Disc Spike Transparent FDA"},{"$f":"'Config. Data'!$E$5","v":"Rotary Disc Polibech White FDA"},{"$f":"'Config. Data'!$E$2","v":"Rotary Disc Diamond Blue FDA"},{"$f":"'Config. Data'!$E$2","v":"Rotary Disc Diamond Blue FDA"}]
[null,{"$f":"'Config. Data'!C36","v":"Transparent"},{"$f":"'Config. Data'!$E$4","v":"Rotary Disc Flat Beige FDA"},{"$f":"'Config. Data'!$E$8","v":"Rotary Disc Silicon Transparent FDA"},{"$f":"'Config. Data'!$E$8","v":"Rotary Disc Silicon Transparent FDA"},{"$f":"'Config. Data'!$E$8","v":"Rotary Disc Silicon Transparent FDA"},{"$f":"'Config. Data'!$E$6","v":"Rotary Disc Diamond White FDA"},{"$f":"'Config. Data'!$E$4","v":"Rotary Disc Flat Beige FDA"}]
[]
["METALLO",{"$f":"'Config. Data'!C24","v":"Yes"},"Flat",{"$f":"'Config. Data'!C27","v":"Cylindrical (d>=20mm)"},{"$f":"'Config. Data'!C28","v":"Cylindrical (10<=dia<20mm)"},{"$f":"'Config. Data'!C29","v":"Cylindrical (5<=dia<10mm)"},{"$f":"'Config. Data'!C30","v":"Cylindrical (1<=dia<5mm)"},{"$f":"'Config. Data'!C31","v":"Complex"}]
[null,{"$f":"'Config. Data'!C33","v":"None of Them"},{"$f":"'Config. Data'!$E$2","v":"Rotary Disc Diamond Blue FDA"},{"$f":"'Config. Data'!$E$3","v":"Rotary Disc Spike Beige FDA"},{"$f":"'Config. Data'!$E$7","v":"Rotary Disc Spike Transparent FDA"},{"$f":"'Config. Data'!$E$5","v":"Rotary Disc Polibech White FDA"},{"$f":"'Config. Data'!$E$2","v":"Rotary Disc Diamond Blue FDA"},{"$f":"'Config. Data'!$E$2","v":"Rotary Disc Diamond Blue FDA"}]
[null,{"$f":"'Config. Data'!C34","v":"Sticky/Tangly"},{"$f":"'Config. Data'!$E$2","v":"Rotary Disc Diamond Blue FDA"},{"$f":"'Config. Data'!$E$3","v":"Rotary Disc Spike Beige FDA"},{"$f":"'Config. Data'!$E$7","v":"Rotary Disc Spike Transparent FDA"},{"$f":"'Config. Data'!$E$5","v":"Rotary Disc Polibech White FDA"},{"$f":"'Config. Data'!$E$2","v":"Rotary Disc Diamond Blue FDA"},{"$f":"'Config. Data'!$E$2","v":"Rotary Disc Diamond Blue FDA"}]
[null,{"$f":"'Config. Data'!C35","v":"Dirty/Oily"},{"$f":"'Config. Data'!$E$2","v":"Rotary Disc Diamond Blue FDA"},{"$f":"'Config. Data'!$E$3","v":"Rotary Disc Spike Beige FDA"},{"$f":"'Config. Data'!$E$7","v":"Rotary Disc Spike Transparent FDA"},{"$f":"'Config. Data'!$E$5","v":"Rotary Disc Polibech White FDA"},{"$f":"'Config. Data'!$E$2","v":"Rotary Disc Diamond Blue FDA"},{"$f":"'Config. Data'!$E$2","v":"Rotary Disc Diamond Blue FDA"}]
[null,{"$f":"'Config. Data'!C36","v":"Transparent"},{"$f":"'Config. Data'!$E$18","v":"Check Characteristic Section"},{"$f":"'Config. Data'!$E$18","v":"Check Characteristic Section"},{"$f":"'Config. Data'!$E$18","v":"Check Characteristic Section"},{"$f":"'Config. Data'!$E$18","v":"Check Characteristic Section"},{"$f":"'Config. Data'!$E$18","v":"Check Characteristic Section"},{"$f":"'Config. Data'!$E$18","v":"Check Characteristic Section"}]
[]
[null,null,{"$f":"'Config. Data'!E2","v":"Rotary Disc Diamond Blue FDA"},{"$f":"'Config. Data'!E3","v":"Rotary Disc Spike Beige FDA"},{"$f":"'Config. Data'!E4","v":"Rotary Disc Flat Beige FDA"},{"$f":"'Config. Data'!E5","v":"Rotary Disc Polibech White FDA"},{"$f":"'Config. Data'!E6","v":"Rotary Disc Diamond White FDA"},{"$f":"'Config. Data'!E7","v":"Rotary Disc Spike Transparent FDA"},{"$f":"'Config. Data'!E8","v":"Rotary Disc Silicon Transparent FDA"},{"$f":"'Config. Data'!E9","v":"Rotary Disc Standard Transparent FDA"}]
[null,"h >3;  W<=15",{"$f":"'Config. Data'!E13","v":"Standard Diverter Included"},{"$f":"'Config. Data'!$E$12","v":"Wedge Diverter"},{"$f":"'Config. Data'!E13","v":"Standard Diverter Included"},{"$f":"'Config. Data'!E13","v":"Standard Diverter Included"},{"$f":"'Config. Data'!E13","v":"Standard Diverter Included"},{"$f":"'Config. Data'!$E$12","v":"Wedge Diverter"},{"$f":"'Config. Data'!E13","v":"Standard Diverter Included"},{"$f":"'Config. Data'!E13","v":"Standard Diverter Included"}]
[null,"h >3;  W>15",{"$f":"'Config. Data'!E13","v":"Standard Diverter Included"},{"$f":"'Config. Data'!E12","v":"Wedge Diverter"},{"$f":"'Config. Data'!E13","v":"Standard Diverter Included"},{"$f":"'Config. Data'!E13","v":"Standard Diverter Included"},{"$f":"'Config. Data'!E13","v":"Standard Diverter Included"},{"$f":"'Config. Data'!$E$12","v":"Wedge Diverter"},{"$f":"'Config. Data'!E13","v":"Standard Diverter Included"},{"$f":"'Config. Data'!E13","v":"Standard Diverter Included"}]
[null,"h <=3",{"$f":"'Config. Data'!$E$10","v":"Air Blow"},{"$f":"'Config. Data'!$E$12","v":"Wedge Diverter"},{"$f":"'Config. Data'!$E$10","v":"Air Blow"},{"$f":"'Config. Data'!$E$10","v":"Air Blow"},{"$f":"'Config. Data'!$E$10","v":"Air Blow"},{"$f":"'Config. Data'!$E$12","v":"Wedge Diverter"},{"$f":"'Config. Data'!$E$10","v":"Air Blow"},{"$f":"'Config. Data'!$E$10","v":"Air Blow"}]